[Event "XII Paracin Festival 2019"]
[Site "Paracin"]
[Date "2019.07.09"]
[Round "6.18"]
[White "Gandhi, Anish"]
[Black "Djordjevic, Vuk"]
[Result "0-1"]
[ECO "C03"]
[WhiteElo "2167"]
[BlackElo "2412"]
[Annotator "NA"]
[PlyCount "130"]
[EventDate "2019.07.05"]
[EventType "swiss"]
[EventCountry "SRB"]
[SourceTitle "playchess.com"]
[Source "ChessBase"]
[SourceQuality "1"]
[TimeControl "5400+30"]

1. e4 {[%emt 0:00:00]} e6 {[%emt 0:01:20]} 2. d4 {[%emt 0:00:00]} d5 {[%emt 0:00:04]} 3. Nd2 {[%emt 0:00:00]} a6 {[%emt 0:00:42]} 4. Ngf3 {[%emt 0:01:23]} c5 {[%emt 0:00:51]} 5. exd5 {[%emt 0:02:21]} exd5 {[%emt 0:01:18]} 6. Qe2+ {[%emt 0:09:11]} Be7 {[%emt 0:05:02]} 7. dxc5 {[%emt 0:02:56]} Nf6 {[%emt 0:01:19]} 8. Nb3 {[%emt 0:00:44]} O-O {[%emt 0:01:09]} 9. Be3 {[%emt 0:00:50]} a5 {[%emt 0:06:25]} 10. a4 {[%emt 0:07:11]} Na6 {[%emt 0:05:57]} 11. Qd1 {[%emt 0:06:17]} Ne4 {[%emt 0:06:41]} 12. Be2 {[%emt 0:02:09]} Naxc5 {[%emt 0:05:40]} 13. Nxc5 {[%emt 0:00:21]} Nxc5 {[%emt 0:00:50]} 14. O-O {[%emt 0:00:37]} Bf5 {[%emt 0:02:22]} 15. Nd4 {[%emt 0:03:26]} Be4 {[%emt 0:08:28]} 16. Nb5 {[%emt 0:03:27]} Rc8 {[%emt 0:06:21]} 17. Nc3 {[%emt 0:04:37]} Ne6 {[%emt 0:04:56]} 18. Nxe4 {[%emt 0:08:46]} dxe4 {[%emt 0:00:36]} 19. Qxd8 {[%emt 0:01:13]} Rfxd8 {[%emt 0:01:13]} 20. c3 {[%emt 0:01:17]} Bc5 {[%emt 0:06:28]} 21. Rfd1 {[%emt 0:02:37]} Bxe3 {[%emt 0:02:37]} 22. fxe3 {[%emt 0:00:07]} g6 {[%emt 0:04:52]} 23. Rxd8+ {[%emt 0:05:23]} Rxd8 {[%emt 0:00:19]} 24. Rd1 {[%emt 0:00:05]} Rxd1+ {[%emt 0:02:22]} 25. Bxd1 {[%emt 0:00:03]} Kg7 {[%emt 0:05:33]} 26. b4 {[%emt 0:02:45]} b6 {[%emt 0:01:12]} 27. Bb3 {[%emt 0:09:15]} Nc7 {[%emt 0:00:31]} 28. g4 {[%emt 0:02:19]} f5 {[%emt 0:06:06]} 29. gxf5 {[%emt 0:04:48]} gxf5 {[%emt 0:00:05]} 30. Kf2 {[%emt 0:00:17]} Kf6 {[%emt 0:00:41]} 31. Kg3 {[%emt 0:02:23]} Na6 {[%emt 0:02:51]} 32. bxa5 {[%emt 0:02:29]} bxa5 {[%emt 0:00:08]} 33. Bc4 {[%emt 0:00:48]} Nc5 {[%emt 0:00:43]} 34. Bb5 {[%emt 0:00:07]} Ke5 {[%emt 0:01:19]} 35. c4 {[%emt 0:03:01]} Nd3 {[%emt 0:01:00]} 36. Bd7 {[%emt 0:00:50]} Nc5 {[%emt 0:05:23]} 37. Bb5 {[%emt 0:00:17]} Ke6 {[%emt 0:01:17]} 38. h4 {[%emt 0:03:04]} Nd3 {[%emt 0:01:46]} 39. Be8 {[%emt 0:01:03]} Ke7 {[%emt 0:01:17]} 40. Bb5 {[%emt 0:00:17]} Kd6 {[%emt 0:00:24]} 41. Be8 {[%emt 0:00:25]} Ke7 {[%emt 0:01:43]} 42. Bb5 {[%emt 0:00:05]} h6 {[%emt 0:00:03]} 43. Ba6 {[%emt 0:06:07]} Kd6 {[%emt 0:00:55]} 44. h5 {[%emt 0:01:34]} Ke5 {[%emt 0:00:33]} 45. Bb5 {[%emt 0:00:29]} Kf6 {[%emt 0:00:25]} 46. Bd7 {[%emt 0:01:10]} Kg5 {[%emt 0:00:15]} 47. Be8 {[%emt 0:00:09]} Nc5 {[%emt 0:00:06]} 48. Kf2 {[%emt 0:01:19]} Kg4 {[%emt 0:01:11]} 49. Ke2 {[%emt 0:01:10]} Kg3 {[%emt 0:00:30]} 50. Bb5 {[%emt 0:00:25]} Kg4 {[%emt 0:00:36]} 51. Be8 {[%emt 0:00:04]} Nd3 {[%emt 0:00:31]} 52. Bf7 {[%emt 0:01:02]} Nc5 {[%emt 0:00:32]} 53. Be8 {[%emt 0:00:05]} f4 {[%emt 0:00:21]} 54. exf4 {[%emt 0:00:15]} Kxf4 {[%emt 0:00:02]} 55. Bc6 {[%emt 0:01:20]} e3 {[%emt 0:00:22]} 56. Be8 {[%emt 0:00:42]} Ke4 {[%emt 0:00:10]} 57. Bc6+ {[%emt 0:01:14]} Kd4 {[%emt 0:00:04]} 58. Be8 {[%emt 0:00:07]} Nd3 {[%emt 0:00:46]} 59. Bb5 {[%emt 0:00:43]} Nf4+ {[%emt 0:01:05]} 60. Kf3 {[%emt 0:00:43]} Nxh5 {[%emt 0:00:41]} 61. c5 {[%emt 0:00:16]} Nf6 {[%emt 0:00:42]} 62. c6 {[%emt 0:00:31]} Nd5 {[%emt 0:00:06]} 63. Kg4 {[%emt 0:01:56]} Kc5 {[%emt 0:00:34]} 64. Kf5 {[%emt 0:00:30]} Kd6 {[%emt 0:00:13]} 65. Ke4 {[%emt 0:00:53]} Nc3+ {[%emt 0:00:06]} 0-1

[Event "XII Paracin Festival 2019"]
[Site "Paracin"]
[Date "2019.07.09"]
[Round "6.19"]
[White "Gan-Od, Sereenen"]
[Black "Lee, Jun Hyeok"]
[Result "1/2-1/2"]
[ECO "A40"]
[WhiteElo "2294"]
[BlackElo "2383"]
[Annotator "NA"]
[PlyCount "118"]
[EventDate "2019.07.05"]
[EventType "swiss"]
[EventCountry "SRB"]
[SourceTitle "playchess.com"]
[Source "ChessBase"]
[SourceQuality "1"]
[TimeControl "5400+30"]

1. d4 {[%emt 0:00:00]} e6 {[%emt 0:01:12]} 2. Nf3 {[%emt 0:00:00]} f5 {[%emt 0:00:14]} 3. d5 {[%emt 0:00:00]} Bb4+ {[%emt 0:00:48]} 4. c3 {[%emt 0:00:29]} Bd6 {[%emt 0:00:08]} 5. dxe6 {[%emt 0:00:35]} dxe6 {[%emt 0:00:07]} 6. e4 {[%emt 0:01:40]} fxe4 {[%emt 0:00:27]} 7. Qa4+ {[%emt 0:00:10]} Nc6 {[%emt 0:00:40]} 8. Bg5 {[%emt 0:02:36]} Be7 {[%emt 0:06:47]} 9. Bxe7 {[%emt 0:01:15]} Qxe7 {[%emt 0:00:06]} 10. Qxe4 {[%emt 0:06:57]} Nf6 {[%emt 0:00:22]} 11. Qh4 {[%emt 0:00:29]} e5 {[%emt 0:03:57]} 12. Bb5 {[%emt 0:02:58]} Bd7 {[%emt 0:00:47]} 13. O-O {[%emt 0:00:20]} O-O-O {[%emt 0:03:48]} 14. Nbd2 {[%emt 0:02:51]} e4 {[%emt 0:04:34]} 15. Rfe1 {[%emt 0:02:18]} Rhe8 {[%emt 0:02:40]} 16. Bxc6 {[%emt 0:08:35]} Bxc6 {[%emt 0:01:30]} 17. Nd4 {[%emt 0:00:09]} Bd5 {[%emt 0:01:55]} 18. Nf1 {[%emt 0:00:25]} g6 {[%emt 0:12:10]} 19. a4 {[%emt 0:01:19]} c5 {[%emt 0:02:18]} 20. Nc2 {[%emt 0:00:54]} Bc4 {[%emt 0:05:27]} 21. Ng3 {[%emt 0:04:09]} Bd3 {[%emt 0:05:40]} 22. Ne3 {[%emt 0:02:15]} Qe6 {[%emt 0:04:32]} 23. b4 {[%emt 0:00:38]} Kb8 {[%emt 0:02:24]} 24. bxc5 {[%emt 0:05:30]} Rc8 {[%emt 0:02:01]} 25. Ne2 {[%emt 0:02:08]} Qe5 {[%emt 0:08:57]} 26. a5 {[%emt 0:03:47]} a6 {[%emt 0:03:42]} 27. Ra4 {[%emt 0:04:04]} Rxc5 {[%emt 0:02:11]} 28. Rb4 {[%emt 0:02:24]} Bxe2 {[%emt 0:10:25]} 29. Rxe2 {[%emt 0:01:12]} Rxc3 {[%emt 0:00:14]} 30. g3 {[%emt 0:04:33]} g5 {[%emt 0:03:27]} 31. Qh6 {[%emt 0:02:01]} Nd5 {[%emt 0:01:05]} 32. Nxd5 {[%emt 0:25:15]} Qxd5 {[%emt 0:00:24]} 33. Rb1 {[%emt 0:02:56]} e3 {[%emt 0:07:42]} 34. f4 {[%emt 0:08:21]} g4 {[%emt 0:02:30]} 35. Qg7 {[%emt 0:00:54]} Rec8 {[%emt 0:01:17]} 36. Rbe1 {[%emt 0:00:33]} h5 {[%emt 0:00:26]} 37. Qe5+ {[%emt 0:01:21]} Qxe5 {[%emt 0:00:01]} 38. fxe5 {[%emt 0:00:01]} R3c5 {[%emt 0:01:31]} 39. Rxe3 {[%emt 0:00:43]} Re8 {[%emt 0:00:12]} 40. e6 {[%emt 0:00:32]} Rxa5 {[%emt 0:00:15]} 41. Rf1 {[%emt 0:01:53]} Kc7 {[%emt 0:00:52]} 42. Rf7+ {[%emt 0:00:14]} Kc6 {[%emt 0:00:31]} 43. Re1 {[%emt 0:01:25]} Rc5 {[%emt 0:00:33]} 44. h3 {[%emt 0:00:11]} gxh3 {[%emt 0:00:07]} 45. Kh2 {[%emt 0:00:01]} a5 {[%emt 0:00:34]} 46. Kxh3 {[%emt 0:00:11]} a4 {[%emt 0:00:10]} 47. Re3 {[%emt 0:01:01]} b5 {[%emt 0:00:06]} 48. Ra7 {[%emt 0:01:05]} Kb6 {[%emt 0:00:33]} 49. Rd7 {[%emt 0:00:03]} Rc6 {[%emt 0:01:22]} 50. e7 {[%emt 0:00:06]} Rc7 {[%emt 0:00:08]} 51. Re6+ {[%emt 0:00:21]} Rc6 {[%emt 0:00:37]} 52. Re5 {[%emt 0:00:02]} b4 {[%emt 0:01:02]} 53. Rd8 {[%emt 0:00:17]} Rc8 {[%emt 0:00:01]} 54. Rd6+ {[%emt 0:00:54]} Kc7 {[%emt 0:00:13]} 55. Ree6 {[%emt 0:01:05]} Rb8 {[%emt 0:01:15]} 56. Rc6+ {[%emt 0:00:06]} Kd7 {[%emt 0:00:25]} 57. Rcd6+ {[%emt 0:00:03]} Kc7 {[%emt 0:00:14]} 58. Rc6+ {[%emt 0:00:02]} Kd7 {[%emt 0:00:04]} 59. Rcd6+ {[%emt 0:00:03]} Kc7 {[%emt 0:00:03]} 1/2-1/2

[Event "XII Paracin Festival 2019"]
[Site "Paracin"]
[Date "2019.07.09"]
[Round "6.20"]
[White "Sanal, Vahap"]
[Black "Boldoo, Erdenepurev"]
[Result "1-0"]
[ECO "B46"]
[WhiteElo "2520"]
[BlackElo "2295"]
[Annotator "ChessBase"]
[PlyCount "66"]
[EventDate "2019.07.05"]
[EventType "swiss"]
[EventCountry "SRB"]
[SourceTitle "playchess.com"]
[Source "ChessBase"]
[SourceQuality "1"]
[TimeControl "5400+30"]

1. e4 {[%emt 0:01:18]} c5 {[%emt 0:00:00]} 2. Nf3 {[%emt 0:00:06]} e6 {[%emt 0:00:04]} 3. d4 {[%emt 0:00:18]} cxd4 {[%emt 0:00:43]} 4. Nxd4 {[%emt 0:00:03]} Nc6 {[%emt 0:00:13]} 5. Nc3 {[%emt 0:00:17]} a6 {[%emt 0:00:10]} 6. g3 {[%emt 0:00:37]} Qc7 {[%emt 0:00:29]} 7. Bg2 {[%emt 0:00:14]} d6 {[%emt 0:00:27]} 8. O-O {[%emt 0:00:25]} Be7 {[%emt 0:00:17]} 9. Nxc6 {[%emt 0:01:26]} bxc6 {[%emt 0:00:11]} 10. Na4 {[%emt 0:00:10]} Nf6 {[%emt 0:06:08]} 11. c4 {[%emt 0:11:01]} e5 {[%emt 0:03:27]} 12. b3 {[%emt 0:03:44]} O-O {[%emt 0:03:24]} 13. Bb2 {[%emt 0:03:30]} Bg4 {[%emt 0:09:00]} 14. Qd2 {[%emt 0:02:07]} Rab8 {[%emt 0:03:41]} 15. f4 {[%emt 0:03:29]} exf4 {[%emt 0:01:46]} 16. gxf4 Nd7 {[%emt 0:05:25]} 17. Rae1 {[%emt 0:10:51]} Bh4 {[%emt 0:06:41]} 18. Qd4 {[%emt 0:03:31]} f6 {[%emt 0:01:41]} 19. Re3 {[%emt 0:01:03]} Nb6 {[%emt 0:01:01]} 20. Nxb6 {[%emt 0:06:49]} Qxb6 {[%emt 0:00:06]} 21. Qd3 {[%emt 0:08:07]} f5 {[%emt 0:02:28]} 22. h3 Bh5 {[%emt 0:08:47]} 23. exf5 {[%emt 0:05:45]} Bf6 {[%emt 0:00:25]} 24. Bxf6 {[%emt 0:00:52]} Rxf6 {[%emt 0:00:02]} 25. Kh2 {[%emt 0:01:06]} Rbf8 {[%emt 0:02:09]} 26. Re6 {[%emt 0:03:06]} Qc5 {[%emt 0:03:43]} 27. Rxf6 {[%emt 0:02:10]} Rxf6 {[%emt 0:00:02]} 28. Qe4 {[%emt 0:00:08]} Qxf5 {[%emt 0:04:35]} 29. Qxf5 {[%emt 0:01:16]} Rxf5 {[%emt 0:00:02]} 30. Bxc6 {[%emt 0:00:13]} Bf7 {[%emt 0:00:13]} 31. Kg3 {[%emt 0:01:34]} Rc5 {[%emt 0:00:16]} 32. Bb7 {[%emt 0:01:27]} d5 {[%emt 0:00:07]} 33. Rd1 {[%emt 0:00:11]} Kf8 {[%emt 0:03:29]} 1-0

[Event "XII Paracin Festival 2019"]
[Site "Paracin"]
[Date "2019.07.09"]
[Round "6.21"]
[White "Tan, Justin"]
[Black "Raghavi, N.."]
[Result "1-0"]
[ECO "A05"]
[WhiteElo "2513"]
[BlackElo "2290"]
[Annotator "ChessBase"]
[PlyCount "73"]
[EventDate "2019.07.05"]
[EventType "swiss"]
[EventCountry "SRB"]
[SourceTitle "playchess.com"]
[Source "ChessBase"]
[SourceQuality "1"]
[TimeControl "5400+30"]

1. Nf3 {[%emt 0:05:48]} Nf6 {[%emt 0:00:53]} 2. c4 {[%emt 0:02:18]} g6 {[%emt 0:00:11]} 3. b3 {[%emt 0:02:48]} Bg7 {[%emt 0:00:12]} 4. Bb2 {[%emt 0:00:03]} d6 {[%emt 0:00:49]} 5. d4 {[%emt 0:00:05]} O-O {[%emt 0:03:26]} 6. g3 {[%emt 0:01:27]} Nbd7 {[%emt 0:00:33]} 7. Bg2 {[%emt 0:00:30]} Re8 {[%emt 0:00:18]} 8. O-O {[%emt 0:04:50]} c6 {[%emt 0:00:48]} 9. Nc3 {[%emt 0:02:59]} e5 {[%emt 0:06:38]} 10. dxe5 {[%emt 0:01:02]} dxe5 {[%emt 0:00:10]} 11. Nd2 {[%emt 0:02:22]} Nc5 {[%emt 0:04:17]} 12. b4 {[%emt 0:01:39]} Ne6 {[%emt 0:03:10]} 13. Nde4 {[%emt 0:05:38]} Nxe4 {[%emt 0:02:18]} 14. Nxe4 {[%emt 0:00:01]} Qe7 {[%emt 0:10:44]} 15. c5 {[%emt 0:08:46]} a5 {[%emt 0:02:14]} 16. a3 {[%emt 0:00:40]} Nd4 {[%emt 0:06:53]} 17. e3 {[%emt 0:01:33]} Nb5 {[%emt 0:08:04]} 18. Qc2 {[%emt 0:02:00]} Bf5 {[%emt 0:01:54]} 19. Qe2 {[%emt 0:04:01]} axb4 {[%emt 0:04:55]} 20. axb4 {[%emt 0:00:01]} h5 {[%emt 0:01:57]} 21. Nc3 {[%emt 0:07:53]} Nc7 {[%emt 0:03:43]} 22. h3 {[%emt 0:03:09]} Na6 {[%emt 0:04:11]} 23. Ra4 {[%emt 0:08:29]} Red8 {[%emt 0:01:24]} 24. Ne4 {[%emt 0:03:32]} b5 {[%emt 0:05:35]} 25. cxb6 {[%emt 0:01:34]} Nxb4 {[%emt 0:00:05]} 26. Rfa1 {[%emt 0:03:17]} Rxa4 {[%emt 0:11:02]} 27. Rxa4 {[%emt 0:00:01]} Rb8 {[%emt 0:06:56]} 28. Ra7 {[%emt 0:01:03]} Qf8 {[%emt 0:01:17]} 29. Ng5 {[%emt 0:03:36]} f6 {[%emt 0:01:38]} 30. Qc4+ {[%emt 0:00:12]} Kh8 {[%emt 0:00:37]} 31. e4 {[%emt 0:03:25]} fxg5 {[%emt 0:01:59]} 32. exf5 {[%emt 0:00:01]} Rxb6 {[%emt 0:02:08]} 33. fxg6 {[%emt 0:03:17]} Nd5 {[%emt 0:02:00]} 34. Bxe5 {[%emt 0:01:49]} Rb1+ {[%emt 0:02:45]} 35. Kh2 {[%emt 0:00:19]} Ne7 {[%emt 0:00:07]} 36. Ra8 {[%emt 0:01:13]} Qxa8 {[%emt 0:00:35]} 37. Bxg7+ {[%emt 0:00:03]} 1-0

[Event "XII Paracin Festival 2019"]
[Site "Paracin"]
[Date "2019.07.09"]
[Round "6.22"]
[White "Apaydin, Fethi"]
[Black "Pikula, Dejan"]
[Result "0-1"]
[ECO "B25"]
[WhiteElo "2310"]
[BlackElo "2447"]
[Annotator "NA"]
[PlyCount "112"]
[EventDate "2019.07.05"]
[EventType "swiss"]
[EventCountry "SRB"]
[SourceTitle "playchess.com"]
[Source "ChessBase"]
[SourceQuality "1"]
[TimeControl "5400+30"]

1. e4 {[%emt 0:00:00]} d6 {[%emt 0:00:09]} 2. Nc3 {[%emt 0:00:00]} g6 {[%emt 0:00:20]} 3. g3 {[%emt 0:00:00]} Bg7 {[%emt 0:00:08]} 4. Bg2 {[%emt 0:00:00]} c5 {[%emt 0:00:13]} 5. d3 {[%emt 0:00:40]} Nc6 {[%emt 0:00:10]} 6. f4 {[%emt 0:00:05]} e6 {[%emt 0:00:38]} 7. Nf3 {[%emt 0:00:04]} Nge7 {[%emt 0:00:04]} 8. O-O {[%emt 0:00:06]} O-O {[%emt 0:00:07]} 9. Be3 {[%emt 0:00:03]} Nd4 {[%emt 0:01:42]} 10. e5 {[%emt 0:00:06]} dxe5 {[%emt 0:06:56]} 11. fxe5 {[%emt 0:04:57]} Nef5 {[%emt 0:00:14]} 12. Bf2 {[%emt 0:00:35]} Nxf3+ {[%emt 0:01:40]} 13. Qxf3 {[%emt 0:00:28]} Bxe5 {[%emt 0:00:13]} 14. Bxc5 {[%emt 0:02:43]} Bd4+ {[%emt 0:01:33]} 15. Bxd4 {[%emt 0:01:10]} Qxd4+ {[%emt 0:00:06]} 16. Rf2 {[%emt 0:32:56]} Bd7 {[%emt 0:03:23]} 17. Qf4 {[%emt 0:16:58]} Rac8 {[%emt 0:03:19]} 18. Ne4 {[%emt 0:09:32]} Bc6 {[%emt 0:08:39]} 19. Re1 {[%emt 0:19:51]} Bxe4 {[%emt 0:02:33]} 20. dxe4 {[%emt 0:00:43]} e5 {[%emt 0:03:01]} 21. Qc1 {[%emt 0:01:02]} Ng7 {[%emt 0:10:07]} 22. c3 {[%emt 0:00:21]} Qb6 {[%emt 0:00:15]} 23. Ref1 {[%emt 0:00:17]} Rcd8 {[%emt 0:02:37]} 24. Kh1 {[%emt 0:00:14]} Rd6 {[%emt 0:00:50]} 25. Qg5 {[%emt 0:02:00]} f6 {[%emt 0:01:54]} 26. Qh6 {[%emt 0:00:37]} Qd8 {[%emt 0:04:21]} 27. Bf3 Qd7 {[%emt 0:00:54]} 28. Qe3 {[%emt 0:03:08]} b6 {[%emt 0:00:19]} 29. Be2 {[%emt 0:01:07]} Qc6 {[%emt 0:00:32]} 30. Bd1 {[%emt 0:01:02]} Nf5 {[%emt 0:01:43]} 31. Bb3+ {[%emt 0:00:44]} Kg7 {[%emt 0:00:06]} 32. Qf3 {[%emt 0:00:45]} Ne7 {[%emt 0:00:07]} 33. h4 {[%emt 0:01:11]} h5 {[%emt 0:04:33]} 34. g4 {[%emt 0:02:43]} hxg4 {[%emt 0:00:09]} 35. Qxg4 {[%emt 0:00:01]} Qd7 {[%emt 0:00:08]} 36. Qxd7 {[%emt 0:01:04]} Rxd7 {[%emt 0:00:05]} 37. Kg2 {[%emt 0:00:12]} Rd6 {[%emt 0:00:15]} 38. Kg3 {[%emt 0:00:15]} f5 {[%emt 0:02:23]} 39. exf5 {[%emt 0:00:54]} Nxf5+ {[%emt 0:00:08]} 40. Kh3 {[%emt 0:00:34]} Rd3+ {[%emt 0:01:12]} 41. Rf3 {[%emt 0:00:43]} Rxf3+ {[%emt 0:00:57]} 42. Rxf3 {[%emt 0:00:04]} Rh8 {[%emt 0:00:05]} 43. Rd3 {[%emt 0:00:07]} Rxh4+ {[%emt 0:00:18]} 44. Kg2 {[%emt 0:00:02]} e4 {[%emt 0:02:02]} 45. Rd7+ {[%emt 0:00:06]} Kf6 {[%emt 0:00:05]} 46. Rxa7 {[%emt 0:00:12]} e3 {[%emt 0:00:15]} 47. Ra6 {[%emt 0:00:49]} Rf4 {[%emt 0:01:31]} 48. Rxb6+ {[%emt 0:00:21]} Kg5 {[%emt 0:00:03]} 49. Bd1 {[%emt 0:02:21]} Rf2+ {[%emt 0:00:11]} 50. Kh3 {[%emt 0:00:29]} Rd2 {[%emt 0:08:58]} 51. Bf3 {[%emt 0:00:33]} Kf4 {[%emt 0:02:49]} 52. Bg4 {[%emt 0:00:04]} Nd6 {[%emt 0:00:33]} 53. Rb4+ {[%emt 0:00:49]} Ne4 {[%emt 0:00:07]} 54. a4 {[%emt 0:00:39]} e2 {[%emt 0:03:53]} 55. Bxe2 {[%emt 0:00:05]} Rxe2 {[%emt 0:00:04]} 56. a5 {[%emt 0:00:12]} g5 {[%emt 0:00:04]} 0-1

[Event "XII Paracin Festival 2019"]
[Site "Paracin"]
[Date "2019.07.09"]
[Round "6.23"]
[White "Radovanovic, Nikola"]
[Black "Risteski, Emil"]
[Result "1/2-1/2"]
[ECO "D00"]
[WhiteElo "2431"]
[BlackElo "2150"]
[Annotator "NA"]
[PlyCount "44"]
[EventDate "2019.07.05"]
[EventType "swiss"]
[EventCountry "SRB"]
[SourceTitle "playchess.com"]
[Source "ChessBase"]
[SourceQuality "1"]
[TimeControl "5400+30"]

1. d4 {[%emt 0:00:00]} d5 {[%emt 0:04:09]} 2. Bf4 {[%emt 0:00:00]} Nf6 {[%emt 0:00:30]} 3. e3 {[%emt 0:00:30]} c5 {[%emt 0:00:07]} 4. Nf3 {[%emt 0:00:30]} Nc6 {[%emt 0:00:08]} 5. Nbd2 cxd4 {[%emt 0:04:07]} 6. exd4 {[%emt 0:01:03]} Qb6 {[%emt 0:01:08]} 7. Nb3 {[%emt 0:01:06]} Bg4 {[%emt 0:03:15]} 8. h3 {[%emt 0:19:21]} Bh5 {[%emt 0:02:12]} 9. g4 {[%emt 0:02:37]} Bg6 {[%emt 0:00:06]} 10. Nh4 {[%emt 0:08:43]} e6 {[%emt 0:02:19]} 11. Nxg6 {[%emt 0:03:06]} hxg6 {[%emt 0:00:05]} 12. Bg2 {[%emt 0:03:23]} Be7 {[%emt 0:02:32]} 13. c3 {[%emt 0:00:08]} Rc8 {[%emt 0:02:26]} 14. O-O {[%emt 0:08:55]} Na5 {[%emt 0:00:30]} 15. Nxa5 {[%emt 0:00:30]} Qxa5 {[%emt 0:00:30]} 16. Qb3 {[%emt 0:00:30]} b5 {[%emt 0:00:30]} 17. a3 {[%emt 0:15:42]} O-O {[%emt 0:24:45]} 18. Rfe1 {[%emt 0:00:51]} Qb6 19. Bf1 {[%emt 0:08:13]} a6 {[%emt 0:12:58]} 20. a4 {[%emt 0:01:08]} Bd6 {[%emt 0:01:13]} 21. Be3 Rb8 22. axb5 {[%emt 0:06:40]} axb5 1/2-1/2

[Event "XII Paracin Festival 2019"]
[Site "Paracin"]
[Date "2019.07.09"]
[Round "6.24"]
[White "Ivanovic, Marko"]
[Black "Nie, Xinyang"]
[Result "0-1"]
[ECO "C96"]
[WhiteElo "2267"]
[BlackElo "2375"]
[Annotator "NA"]
[PlyCount "147"]
[EventDate "2019.07.05"]
[EventType "swiss"]
[EventCountry "SRB"]
[SourceTitle "playchess.com"]
[Source "ChessBase"]
[SourceQuality "1"]
[TimeControl "5400+30"]

1. e4 {[%emt 0:02:08]} e5 {[%emt 0:00:00]} 2. Nf3 {[%emt 0:01:39]} Nc6 {[%emt 0:00:00]} 3. Bb5 {[%emt 0:00:14]} a6 {[%emt 0:00:00]} 4. Ba4 {[%emt 0:00:06]} Nf6 {[%emt 0:00:16]} 5. O-O {[%emt 0:00:06]} b5 {[%emt 0:00:12]} 6. Bb3 {[%emt 0:00:05]} Be7 {[%emt 0:00:06]} 7. Re1 {[%emt 0:00:04]} d6 {[%emt 0:00:18]} 8. c3 {[%emt 0:00:16]} O-O {[%emt 0:00:18]} 9. h3 {[%emt 0:00:04]} Na5 {[%emt 0:00:20]} 10. Bc2 {[%emt 0:00:08]} c5 {[%emt 0:00:04]} 11. d4 {[%emt 0:00:06]} Nd7 {[%emt 0:00:05]} 12. Nbd2 {[%emt 0:01:25]} Nc6 {[%emt 0:09:54]} 13. d5 {[%emt 0:00:43]} Na5 {[%emt 0:05:12]} 14. Nf1 {[%emt 0:02:04]} Nc4 {[%emt 0:00:15]} 15. Ng3 {[%emt 0:00:42]} g6 {[%emt 0:00:16]} 16. b3 {[%emt 0:03:15]} Ncb6 {[%emt 0:00:05]} 17. Bh6 {[%emt 0:00:04]} Re8 {[%emt 0:00:03]} 18. Qd2 {[%emt 0:00:03]} a5 {[%emt 0:01:29]} 19. Nh2 {[%emt 0:21:10]} Nf6 {[%emt 0:03:33]} 20. Rf1 {[%emt 0:04:03]} Kh8 {[%emt 0:02:10]} 21. f4 {[%emt 0:12:06]} Ng8 {[%emt 0:00:09]} 22. Bg5 {[%emt 0:21:33]} f6 {[%emt 0:00:01]} 23. fxe5 {[%emt 0:00:47]} fxg5 {[%emt 0:00:05]} 24. e6 {[%emt 0:00:04]} Ra7 {[%emt 0:06:59]} 25. Rf7 {[%emt 0:05:11]} Nh6 {[%emt 0:00:05]} 26. Rf2 {[%emt 0:00:04]} Bf6 {[%emt 0:00:43]} 27. Raf1 {[%emt 0:00:27]} Be5 {[%emt 0:06:29]} 28. Ne2 {[%emt 0:00:16]} Ng8 {[%emt 0:01:53]} 29. Ng4 {[%emt 0:00:36]} Bg7 {[%emt 0:00:04]} 30. Rf7 {[%emt 0:00:10]} Rb7 {[%emt 0:01:03]} 31. Bd3 {[%emt 0:01:50]} b4 {[%emt 0:04:58]} 32. c4 {[%emt 0:06:56]} Na8 {[%emt 0:13:25]} 33. Ng3 {[%emt 0:00:47]} Rc7 {[%emt 0:00:29]} 34. Kh1 {[%emt 0:02:19]} Bxe6 {[%emt 0:00:31]} 35. dxe6 {[%emt 0:00:05]} Rxe6 {[%emt 0:00:03]} 36. Be2 {[%emt 0:06:24]} Rxf7 {[%emt 0:01:16]} 37. Rxf7 {[%emt 0:00:02]} Nc7 {[%emt 0:00:18]} 38. e5 {[%emt 0:04:30]} h5 {[%emt 0:07:37]} 39. Nf2 {[%emt 0:00:23]} Rxe5 {[%emt 0:00:04]} 40. Nd3 {[%emt 0:00:33]} Re8 {[%emt 0:02:38]} 41. Nxc5 {[%emt 0:03:32]} dxc5 {[%emt 0:00:02]} 42. Qxd8 {[%emt 0:00:07]} Rxd8 {[%emt 0:00:01]} 43. Rxc7 {[%emt 0:00:07]} Be5 {[%emt 0:00:02]} 44. Rxc5 {[%emt 0:00:10]} Bxg3 {[%emt 0:00:09]} 45. Rxg5 {[%emt 0:00:07]} Bf4 {[%emt 0:00:25]} 46. Rxa5 {[%emt 0:00:14]} Re8 {[%emt 0:00:07]} 47. g3 {[%emt 0:00:26]} Bc7 {[%emt 0:10:29]} 48. Rc5 {[%emt 0:00:20]} Bxg3 {[%emt 0:00:42]} 49. Bd3 {[%emt 0:01:11]} Ne7 {[%emt 0:06:49]} 50. Rg5 {[%emt 0:00:10]} Bf4 {[%emt 0:03:47]} 51. Bxg6 {[%emt 0:00:04]} Bxg5 {[%emt 0:00:02]} 52. Bxe8 {[%emt 0:00:07]} h4 {[%emt 0:00:04]} 53. Kg2 {[%emt 0:00:46]} Kg7 {[%emt 0:00:18]} 54. Kf3 {[%emt 0:00:00]} Kf6 {[%emt 0:00:07]} 55. Ke4 {[%emt 0:00:00]} Ke6 {[%emt 0:00:04]} 56. Bh5 {[%emt 0:03:32]} Kd6 {[%emt 0:00:07]} 57. Bf7 {[%emt 0:00:14]} Bc1 {[%emt 0:00:27]} 58. Kd3 {[%emt 0:01:03]} Nc6 {[%emt 0:00:35]} 59. Bd5 {[%emt 0:00:09]} Ne5+ {[%emt 0:00:36]} 60. Kc2 {[%emt 0:00:28]} Be3 {[%emt 0:00:06]} 61. Be4 {[%emt 0:00:13]} Bc5 {[%emt 0:00:35]} 62. Bd5 {[%emt 0:00:16]} Ng6 {[%emt 0:00:05]} 63. Bf3 {[%emt 0:02:45]} Ke5 {[%emt 0:00:08]} 64. Bg4 {[%emt 0:00:58]} Kf4 {[%emt 0:00:46]} 65. Kd2 {[%emt 0:00:06]} Kg3 {[%emt 0:00:19]} 66. Bc8 {[%emt 0:00:59]} Nf4 {[%emt 0:00:04]} 67. Bd7 {[%emt 0:00:06]} Nxh3 {[%emt 0:00:04]} 68. Kd3 {[%emt 0:00:04]} Nf2+ {[%emt 0:00:03]} 69. Ke2 {[%emt 0:00:05]} h3 {[%emt 0:00:11]} 70. Bxh3 {[%emt 0:00:29]} Nxh3 {[%emt 0:00:09]} 71. Kd2 {[%emt 0:00:21]} Kf3 {[%emt 0:00:06]} 72. a3 {[%emt 0:00:26]} bxa3 {[%emt 0:00:09]} 73. Kc3 {[%emt 0:00:04]} Bd4+ {[%emt 0:00:15]} 74. Kxd4 0-1